[Event "Titled Tuesday Blitz March 28 Early 2023"]
[White "Escanor89"]
[Black "hsd2016"]
[WhiteElo "2539"]
[BlackElo "1970"]
[Result "0-1"]
[Round "04"]
[TimeControl "180+2"]
[Date "2023.03.28"]
[WhiteClock "0:00:05"]
[BlackClock "0:00:04"]

1. e4 {[%clk 0:03:00]}  e5 {[%clk 0:02:59]} 2. Nf3 {[%clk 0:03:00]}  Nc6 {[%clk 0:02:59]} 3. Bc4 {[%clk 0:03:00]}  Nf6 {[%clk 0:02:59]} 4. d3 {[%clk 0:03:00]}  Bc5 {[%clk 0:02:59]} 5. c3 {[%clk 0:02:59]}  O-O {[%clk 0:02:59]} 6. O-O {[%clk 0:02:59]}  d6 {[%clk 0:02:58]} 7. Bb3 {[%clk 0:02:59]}  h6 {[%clk 0:02:57]} 8. Nbd2 {[%clk 0:02:58]}  a6 {[%clk 0:02:53]} 9. h3 {[%clk 0:02:57]}  Ne7 {[%clk 0:02:46]} 10. d4 {[%clk 0:02:51]}  exd4 {[%clk 0:02:45]} 11. cxd4 {[%clk 0:02:51]}  Bb6 {[%clk 0:02:46]} 12. Re1 {[%clk 0:02:42]}  Ng6 {[%clk 0:02:44]} 13. Bc2 {[%clk 0:02:31]}  Nf4 {[%clk 0:02:31]} 14. Nc4 {[%clk 0:02:27]}  N6h5 {[%clk 0:02:30]} 15. Nxb6 {[%clk 0:02:22]}  cxb6 {[%clk 0:02:31]} 16. Nh2 {[%clk 0:01:40]}  Qg5 {[%clk 0:02:23]} 17. Ng4 {[%clk 0:01:37]}  Nf6 {[%clk 0:01:43]} 18. Qf3 {[%clk 0:01:27]}  N6h5 {[%clk 0:01:25]} 19. Kh2 {[%clk 0:01:11]}  f5 {[%clk 0:01:18]} 20. exf5 {[%clk 0:01:07]}  Bxf5 {[%clk 0:01:19]} 21. Qb3+ {[%clk 0:00:58]}  Kh8 {[%clk 0:01:10]} 22. Bxf5 {[%clk 0:00:49]}  Qxf5 {[%clk 0:01:10]} 23. Be3 {[%clk 0:00:40]}  Nd3 {[%clk 0:00:59]} 24. Rf1 {[%clk 0:00:35]}  Nhf4 {[%clk 0:00:44]} 25. Kg1 {[%clk 0:00:33]}  h5 {[%clk 0:00:12]} 26. Nh2 {[%clk 0:00:28]}  Qg6 {[%clk 0:00:05]} 27. Bxf4 {[%clk 0:00:26]}  Nxf4 {[%clk 0:00:06]} 28. g4 {[%clk 0:00:19]}  hxg4 {[%clk 0:00:06]} 29. Nxg4 {[%clk 0:00:18]}  Rf5 {[%clk 0:00:05]} 30. Qg3 {[%clk 0:00:18]}  Raf8 {[%clk 0:00:03]} 31. Kh2 {[%clk 0:00:17]}  Rg5 {[%clk 0:00:04]} 32. f3 {[%clk 0:00:16]}  Rh5 {[%clk 0:00:04]} 33. h4 {[%clk 0:00:13]}  Qh7 {[%clk 0:00:03]} 34. Kg1 {[%clk 0:00:08]}  Rxh4 {[%clk 0:00:03]} 35. Kf2 {[%clk 0:00:08]}  Rh3 {[%clk 0:00:03]} 36. Qg1 {[%clk 0:00:06]}  Qc2+ {[%clk 0:00:03]} 37. Ke1 {[%clk 0:00:05]}  Qe2# {[%clk 0:00:04]} 0-1


[Site "https://www.chess.com"]

[Event "Titled Tuesday Blitz March 28 Early 2023"]
[White "Kokoszczynski, Jan"]
[Black "Horvath, Dominik"]
[WhiteFideId "1174460"]
[BlackFideId "1642561"]
[WhiteElo "2139"]
[BlackElo "2407"]
[Result "1-0"]
[Round "04"]
[TimeControl "180+2"]
[Date "2023.03.28"]
[WhiteClock "0:00:56"]
[BlackClock "0:00:45"]

1. d4 {[%clk 0:02:55]}  Nf6 {[%clk 0:02:56]} 2. c4 {[%clk 0:02:55]}  e6 {[%clk 0:02:54]} 3. Nf3 {[%clk 0:02:53]}  b6 {[%clk 0:02:52]} 4. g3 {[%clk 0:02:52]}  Ba6 {[%clk 0:02:51]} 5. b3 {[%clk 0:02:49]}  d5 {[%clk 0:02:44]} 6. cxd5 {[%clk 0:02:41]}  exd5 {[%clk 0:02:21]} 7. Bg2 {[%clk 0:02:40]}  c5 {[%clk 0:02:17]} 8. O-O {[%clk 0:02:39]}  Nc6 {[%clk 0:02:13]} 9. Nc3 {[%clk 0:02:35]}  cxd4 {[%clk 0:02:01]} 10. Nxd4 {[%clk 0:02:34]}  Nxd4 {[%clk 0:02:01]} 11. Qxd4 {[%clk 0:02:34]}  Bc5 {[%clk 0:01:33]} 12. Qa4+ {[%clk 0:02:33]}  Qd7 {[%clk 0:01:20]} 13. Qxa6 {[%clk 0:02:31]}  O-O {[%clk 0:01:20]} 14. Bg5 {[%clk 0:02:19]}  Ng4 {[%clk 0:01:02]} 15. Nxd5 {[%clk 0:02:04]}  Rae8 {[%clk 0:01:00]} 16. Qd3 {[%clk 0:01:44]}  Ne5 {[%clk 0:01:00]} 17. Qd2 {[%clk 0:01:27]}  Qf5 {[%clk 0:01:00]} 18. b4 {[%clk 0:01:07]}  Nc4 {[%clk 0:00:51]} 19. Qf4 {[%clk 0:01:06]}  Qxf4 {[%clk 0:00:49]} 20. Bxf4 {[%clk 0:01:06]}  Bd4 {[%clk 0:00:47]} 21. Rac1 {[%clk 0:01:01]}  Na3 {[%clk 0:00:45]} 22. Bd6 {[%clk 0:00:56]} 1-0


[Site "https://www.chess.com"]

[Event "Titled Tuesday Blitz March 28 Early 2023"]
[White "Kadam, Om Manish"]
[Black "Bas Mas, Jose Joaquin"]
[WhiteFideId "45076294"]
[BlackFideId "22219064"]
[WhiteElo "2221"]
[BlackElo "2233"]
[Result "0-1"]
[Round "04"]
[TimeControl "180+2"]
[Date "2023.03.28"]
[WhiteClock "0:00:46"]
[BlackClock "0:00:20"]

1. e4 {[%clk 0:03:00]}  e6 {[%clk 0:03:00]} 2. d4 {[%clk 0:03:00]}  d5 {[%clk 0:03:00]} 3. exd5 {[%clk 0:02:58]}  exd5 {[%clk 0:03:01]} 4. Nf3 {[%clk 0:02:59]}  Bd6 {[%clk 0:02:58]} 5. Bd3 {[%clk 0:02:59]}  Ne7 {[%clk 0:02:58]} 6. O-O {[%clk 0:02:59]}  Nbc6 {[%clk 0:02:56]} 7. c3 {[%clk 0:02:57]}  Bg4 {[%clk 0:02:49]} 8. h3 {[%clk 0:02:57]}  Bh5 {[%clk 0:02:49]} 9. Re1 {[%clk 0:02:56]}  Qd7 {[%clk 0:02:47]} 10. Nbd2 {[%clk 0:02:55]}  O-O {[%clk 0:02:44]} 11. Nf1 {[%clk 0:02:51]}  Bg6 {[%clk 0:02:42]} 12. Bb5 {[%clk 0:02:49]}  a6 {[%clk 0:02:42]} 13. Ba4 {[%clk 0:02:47]}  b5 {[%clk 0:02:42]} 14. Bb3 {[%clk 0:02:48]}  Na5 {[%clk 0:02:42]} 15. Bc2 {[%clk 0:02:47]}  Rfe8 {[%clk 0:02:32]} 16. Ne5 {[%clk 0:02:43]}  Bxe5 {[%clk 0:02:26]} 17. dxe5 {[%clk 0:02:44]}  c5 {[%clk 0:02:21]} 18. Ne3 {[%clk 0:02:42]}  Rad8 {[%clk 0:02:18]} 19. Ng4 {[%clk 0:02:36]}  Bxc2 {[%clk 0:02:04]} 20. Qxc2 {[%clk 0:02:35]}  Ng6 {[%clk 0:02:04]} 21. f4 {[%clk 0:02:33]}  h5 {[%clk 0:01:51]} 22. Nf2 {[%clk 0:02:17]}  Nc4 {[%clk 0:01:48]} 23. b3 {[%clk 0:02:17]}  Nd6 {[%clk 0:01:48]} 24. Ba3 {[%clk 0:02:12]}  Nf5 {[%clk 0:01:37]} 25. Bxc5 {[%clk 0:02:12]}  Nxf4 {[%clk 0:01:36]} 26. Qd2 {[%clk 0:02:05]}  Ne6 {[%clk 0:01:28]} 27. Bb6 {[%clk 0:02:04]}  Rc8 {[%clk 0:01:27]} 28. Nd3 {[%clk 0:02:04]}  d4 {[%clk 0:01:19]} 29. cxd4 {[%clk 0:02:01]}  Nfxd4 {[%clk 0:01:06]} 30. Rac1 {[%clk 0:01:43]}  Rxc1 {[%clk 0:00:52]} 31. Rxc1 {[%clk 0:01:43]}  Qd5 {[%clk 0:00:52]} 32. Qe3 {[%clk 0:01:38]}  Nf5 {[%clk 0:00:51]} 33. Qf3 {[%clk 0:01:33]}  Qxf3 {[%clk 0:00:44]} 34. gxf3 {[%clk 0:01:34]}  Ned4 {[%clk 0:00:43]} 35. Kf2 {[%clk 0:01:32]}  Re6 {[%clk 0:00:42]} 36. Ba7 {[%clk 0:01:26]}  h4 {[%clk 0:00:40]} 37. Bb8 {[%clk 0:01:23]}  Rg6 {[%clk 0:00:34]} 38. Nf4 {[%clk 0:01:23]}  Rg3 {[%clk 0:00:32]} 39. Rc3 {[%clk 0:01:16]}  Kh7 {[%clk 0:00:29]} 40. Ba7 {[%clk 0:01:13]}  g5 {[%clk 0:00:29]} 41. Nd5 {[%clk 0:00:57]}  Rxh3 {[%clk 0:00:29]} 42. Rc7 {[%clk 0:00:55]}  Kg6 {[%clk 0:00:26]} 43. Ne7+ {[%clk 0:00:49]}  Nxe7 {[%clk 0:00:25]} 44. Bxd4 {[%clk 0:00:49]}  Nf5 {[%clk 0:00:23]} 45. Rc6+ {[%clk 0:00:49]}  Kh5 {[%clk 0:00:23]} 46. Bc5 {[%clk 0:00:47]}  Rh2+ {[%clk 0:00:22]} 47. Kg1 {[%clk 0:00:47]}  Rc2 {[%clk 0:00:22]} 48. b4 {[%clk 0:00:46]}  h3 {[%clk 0:00:20]} 0-1


[Site "https://www.chess.com"]

[Event "Titled Tuesday Blitz March 28 Early 2023"]
[White "Kopczynski, Michal"]
[Black "Belozerov, Andrei"]
[WhiteFideId "1124200"]
[BlackFideId "4120213"]
[WhiteElo "2212"]
[BlackElo "2360"]
[Result "0-1"]
[Round "04"]
[TimeControl "180+2"]
[Date "2023.03.28"]
[WhiteClock "0:00:12"]
[BlackClock "0:00:14"]

1. e4 {[%clk 0:03:00]}  c5 {[%clk 0:02:59]} 2. d4 {[%clk 0:03:01]}  cxd4 {[%clk 0:02:59]} 3. c3 {[%clk 0:03:01]}  Nf6 {[%clk 0:02:59]} 4. Bd3 {[%clk 0:03:01]}  dxc3 {[%clk 0:02:45]} 5. Nxc3 {[%clk 0:03:02]}  Nc6 {[%clk 0:02:45]} 6. f4 {[%clk 0:03:02]}  d6 {[%clk 0:02:39]} 7. Nf3 {[%clk 0:03:01]}  g6 {[%clk 0:02:37]} 8. O-O {[%clk 0:03:02]}  Bg7 {[%clk 0:02:37]} 9. Kh1 {[%clk 0:03:03]}  O-O {[%clk 0:02:37]} 10. Qe1 {[%clk 0:03:03]}  Bg4 {[%clk 0:02:33]} 11. Be3 {[%clk 0:03:04]}  Rc8 {[%clk 0:02:32]} 12. Rd1 {[%clk 0:03:03]}  Qa5 {[%clk 0:02:29]} 13. f5 {[%clk 0:03:03]}  Bxf3 {[%clk 0:02:27]} 14. Rxf3 {[%clk 0:02:59]}  Ne5 {[%clk 0:02:26]} 15. Rh3 {[%clk 0:02:52]}  Nxd3 {[%clk 0:02:22]} 16. Rxd3 {[%clk 0:02:53]}  Qb4 {[%clk 0:01:59]} 17. Qh4 {[%clk 0:02:31]}  Qxb2 {[%clk 0:01:56]} 18. Bd4 {[%clk 0:02:29]}  Qc1+ {[%clk 0:01:42]} 19. Nd1 {[%clk 0:02:13]}  g5 {[%clk 0:01:37]} 20. Qe1 {[%clk 0:02:02]}  Rc2 {[%clk 0:01:29]} 21. Be3 {[%clk 0:01:56]}  Qb1 {[%clk 0:01:08]} 22. Bxg5 {[%clk 0:01:52]}  Rfc8 {[%clk 0:01:00]} 23. Rhg3 {[%clk 0:01:11]}  Kf8 {[%clk 0:00:47]} 24. h3 {[%clk 0:01:05]}  Qxa2 {[%clk 0:00:42]} 25. e5 {[%clk 0:00:54]}  dxe5 {[%clk 0:00:40]} 26. Qxe5 {[%clk 0:00:55]}  Re2 {[%clk 0:00:37]} 27. Rge3 {[%clk 0:00:36]}  Rxe3 {[%clk 0:00:36]} 28. Qxe3 {[%clk 0:00:36]}  Qc4 {[%clk 0:00:29]} 29. Nf2 {[%clk 0:00:26]}  Nd5 {[%clk 0:00:25]} 30. Qd2 {[%clk 0:00:21]}  Rc5 {[%clk 0:00:20]} 31. Ng4 {[%clk 0:00:20]}  h5 {[%clk 0:00:19]} 32. Ne3 {[%clk 0:00:17]}  Qc1+ {[%clk 0:00:17]} 33. Qxc1 {[%clk 0:00:14]}  Rxc1+ {[%clk 0:00:18]} 34. Kh2 {[%clk 0:00:14]}  Be5+ {[%clk 0:00:18]} 35. g3 {[%clk 0:00:12]}  Nxe3 {[%clk 0:00:17]} 36. Bh6+ {[%clk 0:00:12]}  Kg8 {[%clk 0:00:17]} 37. Bxe3 {[%clk 0:00:13]}  Rc2+ {[%clk 0:00:16]} 38. Kg1 {[%clk 0:00:14]}  Bxg3 {[%clk 0:00:15]} 39. Bxa7 {[%clk 0:00:14]}  Bh2+ {[%clk 0:00:13]} 40. Kf1 {[%clk 0:00:14]}  Be5 {[%clk 0:00:13]} 41. Rd7 {[%clk 0:00:13]}  Bf6 {[%clk 0:00:11]} 42. Rxb7 {[%clk 0:00:13]}  Ra2 {[%clk 0:00:10]} 43. Bc5 {[%clk 0:00:13]}  Ra5 {[%clk 0:00:10]} 44. Rc7 {[%clk 0:00:11]}  Kg7 {[%clk 0:00:09]} 45. Ke2 {[%clk 0:00:08]}  Rb5 {[%clk 0:00:07]} 46. Ke3 {[%clk 0:00:06]}  Be5 {[%clk 0:00:06]} 47. Rc8 {[%clk 0:00:06]}  Bd6 {[%clk 0:00:05]} 48. Bd4+ {[%clk 0:00:06]}  f6 {[%clk 0:00:04]} 49. Ke4 {[%clk 0:00:06]}  Ra5 {[%clk 0:00:04]} 50. Re8 {[%clk 0:00:05]}  Ra3 {[%clk 0:00:03]} 51. h4 {[%clk 0:00:04]}  Ra4 {[%clk 0:00:03]} 52. Kd5 {[%clk 0:00:05]}  Kf7 {[%clk 0:00:03]} 53. Rh8 {[%clk 0:00:04]}  Ra5+ {[%clk 0:00:04]} 54. Kc6 {[%clk 0:00:04]}  Rxf5 {[%clk 0:00:03]} 55. Bb6 {[%clk 0:00:05]}  Ke6 {[%clk 0:00:03]} 56. Ra8 {[%clk 0:00:03]}  Rd5 {[%clk 0:00:03]} 57. Re8 {[%clk 0:00:02]}  Re5 {[%clk 0:00:03]} 58. Bd8 {[%clk 0:00:01]}  Rc5+ {[%clk 0:00:02]} 59. Kb7 {[%clk 0:00:02]}  Rc4 {[%clk 0:00:03]} 60. Rh8 {[%clk 0:00:02]}  Rb4+ {[%clk 0:00:03]} 61. Kc8 {[%clk 0:00:03]}  Rc4+ {[%clk 0:00:04]} 62. Kb7 {[%clk 0:00:03]}  Rxh4 {[%clk 0:00:04]} 63. Kc8 {[%clk 0:00:03]}  Rc4+ {[%clk 0:00:04]} 64. Kb7 {[%clk 0:00:04]}  Rb4+ {[%clk 0:00:05]} 65. Kc8 {[%clk 0:00:04]}  Rc4+ {[%clk 0:00:06]} 66. Kb7 {[%clk 0:00:05]}  h4 {[%clk 0:00:06]} 67. Bb6 {[%clk 0:00:04]}  Kf5 {[%clk 0:00:06]} 68. Ka6 {[%clk 0:00:05]}  Rc6 {[%clk 0:00:06]} 69. Kb5 {[%clk 0:00:06]}  Rc1 {[%clk 0:00:06]} 70. Rxh4 {[%clk 0:00:05]}  Rb1+ {[%clk 0:00:06]} 71. Kc6 {[%clk 0:00:05]}  Ke6 {[%clk 0:00:07]} 72. Re4+ {[%clk 0:00:04]}  Be5 {[%clk 0:00:07]} 73. Re2 {[%clk 0:00:05]}  Rc1+ {[%clk 0:00:07]} 74. Bc5 {[%clk 0:00:05]}  Kf7 {[%clk 0:00:06]} 75. Kd5 {[%clk 0:00:05]}  e6+ {[%clk 0:00:06]} 76. Kc6 {[%clk 0:00:05]}  Bd4 {[%clk 0:00:07]} 77. Kd7 {[%clk 0:00:04]}  Rxc5 {[%clk 0:00:06]} 78. Rxe6 {[%clk 0:00:04]}  Rd5+ {[%clk 0:00:07]} 79. Rd6 {[%clk 0:00:04]}  Rxd6+ {[%clk 0:00:07]} 80. Kxd6 {[%clk 0:00:05]}  Be5+ {[%clk 0:00:08]} 81. Kd5 {[%clk 0:00:05]}  Kg6 {[%clk 0:00:09]} 82. Ke4 {[%clk 0:00:06]}  Kg5 {[%clk 0:00:09]} 83. Kf3 {[%clk 0:00:07]}  Kf5 {[%clk 0:00:10]} 84. Kg2 {[%clk 0:00:08]}  Ke4 {[%clk 0:00:10]} 85. Kf2 {[%clk 0:00:08]}  f5 {[%clk 0:00:11]} 86. Ke2 {[%clk 0:00:09]}  f4 {[%clk 0:00:12]} 87. Kf2 {[%clk 0:00:10]}  f3 {[%clk 0:00:13]} 88. Kf1 {[%clk 0:00:11]}  Bd4 {[%clk 0:00:13]} 89. Ke1 {[%clk 0:00:11]}  Ke3 {[%clk 0:00:13]} 90. Kf1 {[%clk 0:00:12]}  Bc3 {[%clk 0:00:13]} 91. Kg1 {[%clk 0:00:12]}  Ke2 {[%clk 0:00:14]} 92. Kh2 {[%clk 0:00:12]}  f2 {[%clk 0:00:14]} 0-1


[Site "https://www.chess.com"]

[Event "Titled Tuesday Blitz March 28 Early 2023"]
[White "Nunez V, Gustavo Eduardo"]
[Black "Orlov, Georgi"]
[WhiteFideId "4403690"]
[BlackFideId "2011271"]
[WhiteElo "2228"]
[BlackElo "2594"]
[Result "1/2-1/2"]
[Round "04"]
[TimeControl "180+2"]
[Date "2023.03.28"]
[WhiteClock "0:00:29"]
[BlackClock "0:00:07"]

1. e4 {[%clk 0:03:00]}  d6 {[%clk 0:02:58]} 2. Nc3 {[%clk 0:02:59]}  Nf6 {[%clk 0:02:59]} 3. g3 {[%clk 0:02:59]}  c5 {[%clk 0:02:57]} 4. Bg2 {[%clk 0:03:00]}  Nc6 {[%clk 0:02:57]} 5. d3 {[%clk 0:03:00]}  g6 {[%clk 0:02:57]} 6. Nge2 {[%clk 0:03:01]}  Bg7 {[%clk 0:02:57]} 7. O-O {[%clk 0:03:01]}  O-O {[%clk 0:02:58]} 8. h3 {[%clk 0:03:01]}  Nd7 {[%clk 0:02:57]} 9. Be3 {[%clk 0:03:00]}  Nd4 {[%clk 0:02:56]} 10. Qd2 {[%clk 0:03:01]}  Rb8 {[%clk 0:02:50]} 11. a4 {[%clk 0:02:59]}  a6 {[%clk 0:02:49]} 12. a5 {[%clk 0:02:57]}  Nc6 {[%clk 0:02:47]} 13. Nd5 {[%clk 0:02:47]}  e6 {[%clk 0:02:44]} 14. Nb6 {[%clk 0:02:47]}  Nxb6 {[%clk 0:02:44]} 15. axb6 {[%clk 0:02:48]}  Qxb6 {[%clk 0:02:43]} 16. c3 {[%clk 0:02:48]}  Bd7 {[%clk 0:02:39]} 17. b4 {[%clk 0:02:47]}  Qa7 {[%clk 0:02:32]} 18. f4 {[%clk 0:02:37]}  b6 {[%clk 0:02:31]} 19. bxc5 {[%clk 0:02:31]}  bxc5 {[%clk 0:02:29]} 20. Qa2 {[%clk 0:02:26]}  Rb5 {[%clk 0:02:24]} 21. Qxa6 {[%clk 0:02:24]}  Qxa6 {[%clk 0:02:22]} 22. Rxa6 {[%clk 0:02:25]}  Rb2 {[%clk 0:02:22]} 23. Bf3 {[%clk 0:02:20]}  Rfb8 {[%clk 0:02:19]} 24. e5 {[%clk 0:02:18]}  dxe5 {[%clk 0:02:13]} 25. Bxc5 {[%clk 0:02:12]}  exf4 {[%clk 0:02:06]} 26. Nxf4 {[%clk 0:02:13]}  Rc8 {[%clk 0:02:05]} 27. d4 {[%clk 0:02:11]}  Rb3 {[%clk 0:01:57]} 28. Ne2 {[%clk 0:02:00]}  h5 {[%clk 0:01:51]} 29. Rfa1 {[%clk 0:01:55]}  Rbb8 {[%clk 0:01:42]} 30. Kf2 {[%clk 0:01:43]}  Bf8 {[%clk 0:01:31]} 31. Bxf8 {[%clk 0:01:31]}  Kxf8 {[%clk 0:01:31]} 32. Ke3 {[%clk 0:01:31]}  Ne7 {[%clk 0:01:28]} 33. R1a2 {[%clk 0:01:26]}  Bb5 {[%clk 0:01:24]} 34. Ra8 {[%clk 0:01:22]}  Nf5+ {[%clk 0:01:17]} 35. Kf2 {[%clk 0:01:16]}  Rxa8 {[%clk 0:01:11]} 36. Rxa8 {[%clk 0:01:17]}  Rxa8 {[%clk 0:01:11]} 37. Bxa8 {[%clk 0:01:17]}  Bxe2 {[%clk 0:01:12]} 38. Kxe2 {[%clk 0:01:18]}  Nxg3+ {[%clk 0:01:12]} 39. Kf3 {[%clk 0:01:15]}  Nf5 {[%clk 0:01:11]} 40. Ke4 {[%clk 0:01:12]}  Nd6+ {[%clk 0:01:08]} 41. Ke5 {[%clk 0:01:11]}  Ke7 {[%clk 0:01:07]} 42. Bc6 {[%clk 0:01:05]}  g5 {[%clk 0:01:03]} 43. d5 {[%clk 0:01:01]}  f6+ {[%clk 0:00:56]} 44. Kd4 {[%clk 0:01:01]}  e5+ {[%clk 0:00:54]} 45. Kc5 {[%clk 0:01:01]}  Ne4+ {[%clk 0:00:54]} 46. Kb4 {[%clk 0:00:59]}  Kd6 {[%clk 0:00:54]} 47. c4 {[%clk 0:01:00]}  f5 {[%clk 0:00:50]} 48. Be8 {[%clk 0:01:00]}  Nc5 {[%clk 0:00:41]} 49. Bxh5 {[%clk 0:00:58]}  f4 {[%clk 0:00:40]} 50. Kc3 {[%clk 0:00:55]}  e4 {[%clk 0:00:32]} 51. Kd4 {[%clk 0:00:55]}  f3 {[%clk 0:00:30]} 52. Bg4 {[%clk 0:00:48]}  Nb3+ {[%clk 0:00:14]} 53. Ke3 {[%clk 0:00:43]}  Ke5 {[%clk 0:00:12]} 54. Bxf3 {[%clk 0:00:30]}  exf3 {[%clk 0:00:11]} 55. Kxf3 {[%clk 0:00:30]}  Nd2+ {[%clk 0:00:12]} 56. Kg4 {[%clk 0:00:30]}  Nxc4 {[%clk 0:00:09]} 57. Kxg5 {[%clk 0:00:30]}  Kxd5 {[%clk 0:00:09]} 58. h4 {[%clk 0:00:29]}  Ke6 {[%clk 0:00:09]} 59. Kg6 {[%clk 0:00:29]}  Ne5+ {[%clk 0:00:08]} 60. Kg7 {[%clk 0:00:29]}  Ng4 {[%clk 0:00:07]} 61. h5 {[%clk 0:00:29]}  Kf5 {[%clk 0:00:07]} 62. h6 {[%clk 0:00:29]}  Nxh6 {[%clk 0:00:07]} 1/2-1/2


[Site "https://www.chess.com"]

[Event "Titled Tuesday Blitz March 28 Early 2023"]
[White "Toktomushev, Teimur"]
[Black "Rastbod, Ali"]
[WhiteFideId "14176726"]
[BlackFideId "12567477"]
[WhiteElo "2116"]
[BlackElo "2211"]
[Result "0-1"]
[Round "04"]
[TimeControl "180+2"]
[Date "2023.03.28"]
[WhiteClock "0:00:05"]
[BlackClock "0:01:20"]

1. d4 {[%clk 0:02:59]}  d5 {[%clk 0:03:00]} 2. c4 {[%clk 0:02:59]}  e6 {[%clk 0:03:00]} 3. Nc3 {[%clk 0:02:59]}  Be7 {[%clk 0:03:01]} 4. Nf3 {[%clk 0:02:58]}  Nf6 {[%clk 0:03:00]} 5. e3 {[%clk 0:02:49]}  O-O {[%clk 0:03:01]} 6. Bd3 {[%clk 0:02:50]}  a6 {[%clk 0:03:01]} 7. b3 {[%clk 0:02:38]}  b6 {[%clk 0:02:55]} 8. O-O {[%clk 0:02:37]}  Bb7 {[%clk 0:02:53]} 9. Bb2 {[%clk 0:02:34]}  Ne4 {[%clk 0:02:52]} 10. Qc2 {[%clk 0:02:34]}  f5 {[%clk 0:02:52]} 11. Ne5 {[%clk 0:02:33]}  Nd7 {[%clk 0:02:52]} 12. Nxd7 {[%clk 0:02:15]}  Qxd7 {[%clk 0:02:53]} 13. f3 {[%clk 0:02:15]}  Nxc3 {[%clk 0:02:24]} 14. Bxc3 {[%clk 0:02:16]}  g6 {[%clk 0:02:06]} 15. e4 {[%clk 0:01:56]}  dxe4 {[%clk 0:01:45]} 16. fxe4 {[%clk 0:01:56]}  Rad8 {[%clk 0:01:45]} 17. Rad1 {[%clk 0:00:37]}  Bg5 {[%clk 0:01:36]} 18. d5 {[%clk 0:00:12]}  exd5 {[%clk 0:01:32]} 19. exf5 {[%clk 0:00:08]}  d4 {[%clk 0:01:32]} 20. Bd2 {[%clk 0:00:03]}  Bxd2 {[%clk 0:01:28]} 21. Qxd2 {[%clk 0:00:04]}  gxf5 {[%clk 0:01:28]} 22. Qg5+ {[%clk 0:00:03]}  Qg7 {[%clk 0:01:29]} 23. Qxg7+ {[%clk 0:00:02]}  Kxg7 {[%clk 0:01:30]} 24. Rxf5 {[%clk 0:00:02]}  Rxf5 {[%clk 0:01:30]} 25. Bxf5 {[%clk 0:00:03]}  c5 {[%clk 0:01:31]} 26. Bd3 {[%clk 0:00:03]}  Re8 {[%clk 0:01:31]} 27. Kf2 {[%clk 0:00:03]}  Re3 {[%clk 0:01:32]} 28. Rd2 {[%clk 0:00:02]}  h5 {[%clk 0:01:29]} 29. Be2 {[%clk 0:00:03]}  h4 {[%clk 0:01:28]} 30. Rd3 {[%clk 0:00:03]}  Re5 {[%clk 0:01:25]} 31. Bf3 {[%clk 0:00:03]}  Bc8 {[%clk 0:01:25]} 32. Bd5 {[%clk 0:00:03]}  Bf5 {[%clk 0:01:23]} 33. Rd2 {[%clk 0:00:03]}  d3 {[%clk 0:01:24]} 34. g3 {[%clk 0:00:03]}  h3 {[%clk 0:01:23]} 35. Kf3 {[%clk 0:00:03]}  Kf6 {[%clk 0:01:23]} 36. Kf4 {[%clk 0:00:03]}  Bg6 {[%clk 0:01:22]} 37. g4 {[%clk 0:00:03]}  Re2 {[%clk 0:01:21]} 38. Rd1 {[%clk 0:00:02]}  Rxh2 {[%clk 0:01:20]} 39. g5+ {[%clk 0:00:02]}  Kg7 {[%clk 0:01:21]} 40. Be4 {[%clk 0:00:01]}  Rf2+ {[%clk 0:01:18]} 41. Ke3 {[%clk 0:00:01]}  Re2+ {[%clk 0:01:18]} 42. Kxd3 {[%clk 0:00:02]}  Rxe4 {[%clk 0:01:18]} 43. Kc3 {[%clk 0:00:02]}  Re3+ {[%clk 0:01:18]} 44. Kd2 {[%clk 0:00:02]}  Rd3+ {[%clk 0:01:18]} 45. Ke2 {[%clk 0:00:03]}  Rxd1 {[%clk 0:01:19]} 46. Kxd1 {[%clk 0:00:04]}  h2 {[%clk 0:01:20]} 47. Ke1 {[%clk 0:00:05]}  h1=Q+ {[%clk 0:01:20]} 48. Kf2 {[%clk 0:00:05]} 0-1


[Site "https://www.chess.com"]

[Event "Titled Tuesday Blitz March 28 Early 2023"]
[White "Harriott, Tyrell"]
[Black "Pham, Le Thao Nguyen"]
[WhiteFideId "2086484"]
[BlackFideId "12401226"]
[WhiteElo "2107"]
[BlackElo "2282"]
[Result "1-0"]
[Round "04"]
[TimeControl "180+2"]
[Date "2023.03.28"]
[WhiteClock "0:00:12"]
[BlackClock "0:00:07"]

1. d4 {[%clk 0:03:00]}  d5 {[%clk 0:02:38]} 2. e3 {[%clk 0:03:00]}  c6 {[%clk 0:02:33]} 3. Bd3 {[%clk 0:02:59]}  Nf6 {[%clk 0:02:32]} 4. f4 {[%clk 0:02:59]}  Bg4 {[%clk 0:02:31]} 5. Ne2 {[%clk 0:02:59]}  Nbd7 {[%clk 0:02:31]} 6. Nd2 {[%clk 0:02:57]}  e6 {[%clk 0:02:29]} 7. O-O {[%clk 0:02:57]}  Bd6 {[%clk 0:02:24]} 8. Nf3 {[%clk 0:02:57]}  Bxf3 {[%clk 0:02:21]} 9. gxf3 {[%clk 0:02:52]}  g6 {[%clk 0:02:05]} 10. Kh1 {[%clk 0:02:51]}  Nh5 {[%clk 0:02:04]} 11. Rg1 {[%clk 0:02:50]}  f5 {[%clk 0:01:40]} 12. Bd2 {[%clk 0:02:42]}  Be7 {[%clk 0:01:20]} 13. c4 {[%clk 0:02:40]}  O-O {[%clk 0:01:17]} 14. b4 {[%clk 0:02:39]}  a6 {[%clk 0:01:12]} 15. c5 {[%clk 0:02:31]}  Kh8 {[%clk 0:00:55]} 16. Rb1 {[%clk 0:02:27]}  Bh4 {[%clk 0:00:49]} 17. Qf1 {[%clk 0:02:25]}  Rg8 {[%clk 0:00:47]} 18. Qh3 {[%clk 0:02:24]}  Bf2 {[%clk 0:00:34]} 19. Rg2 {[%clk 0:02:09]}  Qh4 {[%clk 0:00:32]} 20. Ng1 {[%clk 0:02:01]}  Qxh3 {[%clk 0:00:19]} 21. Nxh3 {[%clk 0:02:00]}  Bh4 {[%clk 0:00:20]} 22. a4 {[%clk 0:01:45]}  h6 {[%clk 0:00:20]} 23. e4 {[%clk 0:01:32]}  Kh7 {[%clk 0:00:18]} 24. Be3 {[%clk 0:01:29]}  Ndf6 {[%clk 0:00:17]} 25. e5 {[%clk 0:01:27]}  Nd7 {[%clk 0:00:17]} 26. Rgb2 {[%clk 0:01:25]}  g5 {[%clk 0:00:15]} 27. fxg5 {[%clk 0:01:05]}  hxg5 {[%clk 0:00:15]} 28. Rg1 {[%clk 0:01:03]}  Kh6 {[%clk 0:00:09]} 29. Rbg2 {[%clk 0:01:01]}  f4 {[%clk 0:00:04]} 30. Bd2 {[%clk 0:00:55]}  Raf8 {[%clk 0:00:03]} 31. Nf2 {[%clk 0:00:53]}  Ng7 {[%clk 0:00:03]} 32. Ng4+ {[%clk 0:00:53]}  Kh5 {[%clk 0:00:04]} 33. Be1 {[%clk 0:00:50]}  Bxe1 {[%clk 0:00:03]} 34. Rxe1 {[%clk 0:00:50]}  Nf5 {[%clk 0:00:03]} 35. Bxf5 {[%clk 0:00:46]}  Rxf5 {[%clk 0:00:04]} 36. Rb2 {[%clk 0:00:45]}  Rf7 {[%clk 0:00:04]} 37. Kg2 {[%clk 0:00:44]}  Kg6 {[%clk 0:00:04]} 38. Reb1 {[%clk 0:00:40]}  Rh8 {[%clk 0:00:05]} 39. b5 {[%clk 0:00:39]}  axb5 {[%clk 0:00:05]} 40. axb5 {[%clk 0:00:40]}  Ra8 {[%clk 0:00:06]} 41. bxc6 {[%clk 0:00:38]}  bxc6 {[%clk 0:00:07]} 42. Rd2 {[%clk 0:00:37]}  Ra4 {[%clk 0:00:06]} 43. Rb7 {[%clk 0:00:35]}  Ra3 {[%clk 0:00:04]} 44. Rc7 {[%clk 0:00:33]}  Ra6 {[%clk 0:00:04]} 45. Rc8 {[%clk 0:00:33]}  Kg7 {[%clk 0:00:04]} 46. Rc7 {[%clk 0:00:32]}  Nxe5 {[%clk 0:00:04]} 47. Rxf7+ {[%clk 0:00:21]}  Nxf7 {[%clk 0:00:05]} 48. Re2 {[%clk 0:00:21]}  Nd8 {[%clk 0:00:04]} 49. Ne5 {[%clk 0:00:20]}  Ra4 {[%clk 0:00:04]} 50. Rd2 {[%clk 0:00:20]}  Ra6 {[%clk 0:00:05]} 51. Kh3 {[%clk 0:00:19]}  Kf6 {[%clk 0:00:05]} 52. Nd7+ {[%clk 0:00:17]}  Ke7 {[%clk 0:00:05]} 53. Ne5 {[%clk 0:00:16]}  Kf6 {[%clk 0:00:05]} 54. Kg2 {[%clk 0:00:15]}  Nf7 {[%clk 0:00:04]} 55. Nd7+ {[%clk 0:00:14]}  Kf5 {[%clk 0:00:04]} 56. Nb8 {[%clk 0:00:14]}  Ra3 {[%clk 0:00:04]} 57. Nxc6 {[%clk 0:00:12]}  e5 {[%clk 0:00:03]} 58. dxe5 {[%clk 0:00:11]}  Nxe5 {[%clk 0:00:04]} 59. Rxd5 {[%clk 0:00:10]}  Re3 {[%clk 0:00:04]} 60. Rxe5+ {[%clk 0:00:10]}  Rxe5 {[%clk 0:00:05]} 61. Nxe5 {[%clk 0:00:10]}  Kxe5 {[%clk 0:00:06]} 62. Kh3 {[%clk 0:00:10]}  Kd5 {[%clk 0:00:06]} 63. Kg4 {[%clk 0:00:11]}  Kxc5 {[%clk 0:00:07]} 64. Kxg5 {[%clk 0:00:11]}  Kd4 {[%clk 0:00:07]} 65. Kxf4 {[%clk 0:00:12]} 1-0


[Site "https://www.chess.com"]